bitfinex-derivatives/quotes_ETHF0:USTF0_20251116
["timestamp","ask_amount","ask_price","bid_price","bid_amount"]
[1763307077673,4.66455985,3169.6,3169.5,0.3815]
[1763307078262,4.66455985,3169.6,3169.5,0.1368]
[1763307079778,3.2078,3170.0,3169.9,0.2437]
[1763307081977,3.2078,3170.0,3169.5,0.1368]
[1763307082381,3.2078,3170.0,3169.9,0.2437]
[1763307082885,3.2078,3170.0,3169.5,0.1368]
[1763307083085,3.2078,3170.0,3169.9,0.2437]
[1763307084590,3.2078,3170.0,3169.5,0.1368]
[1763307086392,3.2078,3170.0,3169.9,0.2437]
[1763307088500,3.2078,3170.0,3169.5,0.1368]
[1763307089500,1.45675985,3169.9,3169.5,0.1368]
[1763307090602,1.45675985,3169.9,3169.8,0.2481]
[1763307091301,1.45675985,3169.9,3169.5,0.1368]
[1763307094410,0.71618534,3169.8,3169.5,0.1368]
[1763307094804,0.99649951,3169.6,3169.5,0.3849]
[1763307096716,5.91728917,3169.6,3169.2,5.8998]
[1763307096916,5.91728917,3169.6,3169.0,0.1368]
[1763307096917,1.99299902,3169.3,3169.0,0.1368]
[1763307097219,0.99649951,3169.1,3169.0,0.1368]
[1763307097519,0.99649951,3169.1,3169.0,0.3849]
[1763307098514,0.99649951,3169.1,3169.0,0.1368]
[1763307099515,1.71226981,3169.1,3169.0,0.1368]
[1763307100819,2.17370253,3169.1,3169.0,0.1368]
[1763307102317,0.7157703,3169.1,3169.0,0.1368]
[1763307103212,0.7157703,3169.1,3169.0,0.1499]
[1763307108811,3.9235703,3169.1,3169.0,0.1499]
[1763307109723,3.9235703,3169.1,3169.0,0.398]
[1763307111228,3.2078,3169.1,3169.0,0.398]
[1763307113828,3.2078,3169.1,3169.0,0.1499]
[1763307114621,3.9223834,3169.1,3169.0,0.1499]
[1763307114822,3.9223834,3169.1,3168.5,0.15015642]
[1763307115018,1.45793223,3168.6,3168.5,0.39825642]
[1763307116722,5.38034616,3168.6,3168.5,0.15015642]
[1763307116928,5.55776456,3168.6,3168.5,0.15015642]
[1763307117121,5.55776456,3168.6,3168.5,0.00405642]
[1763307117517,5.55776456,3168.6,3168.5,0.15395642]
[1763307117719,3.92241393,3168.6,3168.5,0.15395642]
[1763307117931,3.92241393,3168.6,3168.5,0.40205642]
[1763307118927,0.00472992,3168.9,3168.8,0.2481]
[1763307119131,0.71942921,3168.9,3168.8,0.2481]
[1763307119626,0.00472992,3168.9,3168.8,0.2481]
[1763307120920,0.9394205,3168.9,3168.8,0.2481]
[1763307121123,0.9394205,3168.9,3168.5,0.15395642]
[1763307121320,0.93469058,3168.6,3168.5,0.38605642]
[1763307121927,0.93469058,3168.6,3168.5,0.15395642]
[1763307122230,4.14249058,3168.6,3168.5,0.15395642]
[1763307122428,4.8578129,3168.6,3168.5,0.00405642]
[1763307124033,4.8578129,3168.6,3168.5,0.13985642]
[1763307124430,4.8578129,3168.6,3168.5,0.37195642]
[1763307125129,4.8578129,3168.6,3168.5,0.13985642]
[1763307127635,4.8578129,3168.6,3168.5,0.37195642]
[1763307129438,4.8578129,3168.6,3168.5,0.13985642]
[1763307129645,4.8578129,3168.6,3168.5,0.00405642]
[1763307130137,5.70360372,3168.6,3168.5,0.00405642]
[1763307130733,11.79250348,3168.6,3168.0,3.3497]
[1763307131037,11.79250348,3168.6,3168.0,0.1358]
[1763307131038,0.93469058,3168.1,3168.0,0.1358]
[1763307131242,1.6500129,3168.1,3168.0,0.1358]
[1763307131739,1.6500129,3168.1,3168.0,0.13984227]
[1763307132530,2.58470348,3168.1,3168.0,0.13984227]
[1763307132942,2.58470348,3168.1,3168.0,0.00404227]
[1763307133442,2.58470348,3168.1,3168.0,0.13984227]
[1763307135347,2.58470348,3168.1,3167.1,3.2078]
[1763307135650,2.58470348,3168.1,3167.2,0.236]
[1763307135651,3.2078,3167.3,3167.2,0.236]
[1763307136042,3.2078,3167.3,3167.0,0.1499]
[1763307136243,3.2078,3167.3,3167.2,0.236]
[1763307136443,3.21089469,3167.3,3167.2,0.23864684]
[1763307136844,4.14558527,3167.3,3167.2,0.23864684]
[1763307137746,4.14558527,3167.3,3167.2,0.00264684]
[1763307138051,4.14558527,3167.3,3167.2,0.23864684]
[1763307138550,4.85942614,3167.3,3167.2,0.236]
[1763307138755,4.14558527,3167.3,3167.2,0.236]
[1763307139456,4.14558527,3167.3,3167.2,0.23949024]
[1763307139750,4.14558527,3167.3,3167.2,0.00349024]
[1763307141246,0.93778527,3167.3,3167.2,0.00349024]
[1763307141852,0.93778527,3167.3,3167.2,0.23949024]
[1763307145752,0.93778527,3167.3,3167.2,0.00349024]
[1763307146055,0.93778527,3167.3,3167.2,0.23949024]
[1763307147553,0.93778527,3167.3,3167.2,0.00349024]
[1763307149453,0.93778527,3167.3,3167.2,0.23949024]
[1763307149657,5.08027585,3167.3,3166.5,0.1358]
[1763307149848,5.08027585,3167.3,3166.6,0.2447]
[1763307149849,4.14249058,3166.7,3166.6,0.2447]
[1763307150351,0.00472992,3167.2,3167.1,0.2447]
[1763307150757,0.00472992,3167.2,3167.1,0.24830392]
[1763307153057,0.00472992,3167.2,3167.1,0.00360392]
[1763307153860,4.1472205,3167.2,3166.5,3.3436]
[1763307154062,0.93469058,3166.6,3166.5,3.3436]
[1763307154851,0.93469058,3166.6,3166.5,3.34673722]
[1763307155252,0.93469058,3166.6,3166.5,0.13893722]
[1763307155861,0.93469058,3166.6,3166.5,0.38363722]
[1763307157363,0.93469058,3166.9,3166.5,3.34673722]
[1763307157664,0.93469058,3166.9,3166.8,0.2447]
[1763307160070,0.93469058,3166.9,3166.5,3.34673722]
[1763307160863,0.93469058,3166.9,3166.8,0.2447]
[1763307161363,0.93469058,3166.9,3166.5,3.34673722]
[1763307161567,0.93469058,3166.6,3166.5,3.34673722]
[1763307162361,0.93469058,3166.6,3166.5,3.59143722]
[1763307164773,0.93469058,3166.6,3166.5,0.38363722]
[1763307170675,0.85289568,3167.2,3166.5,0.38363722]
[1763307170676,0.00472992,3167.2,3167.1,0.2447]
[1763307170873,0.9394205,3167.2,3167.1,0.2447]
[1763307171174,1.65551488,3167.2,3167.1,0.2447]
[1763307171777,1.65551488,3167.2,3167.0,0.1453]
[1763307171778,2.59020546,3167.2,3167.0,0.1453]
[1763307172071,2.59020546,3167.2,3167.0,0.39]
[1763307172072,0.71609438,3167.1,3167.0,0.39]
[1763307172769,0.9394205,3167.2,3167.1,0.2447]
[1763307173269,1.65553133,3167.2,3167.0,0.1453]
[1763307173576,0.71611083,3167.1,3167.0,0.1453]
[1763307173772,1.65080141,3167.1,3167.0,0.1453]
[1763307173968,0.71611083,3167.1,3167.0,0.1453]
[1763307174176,0.71611083,3167.1,3167.0,0.39]
[1763307176075,0.71611083,3167.1,3167.0,0.1453]
[1763307178878,1.71438064,3167.1,3167.0,0.1453]
[1763307180280,1.71438064,3167.1,3167.0,0.39]
[1763307181488,1.71438064,3167.1,3167.0,0.1453]
[1763307182082,1.71438064,3167.1,3167.0,0.3765]
[1763307183884,0.71611083,3167.1,3167.0,0.3765]
[1763307185388,0.00472992,3167.2,3167.1,0.2312]
[1763307185677,1.00299973,3167.2,3167.1,1.9356572]
[1763307186083,0.00309469,3167.3,3167.2,0.2312]
[1763307186296,0.84816576,3168.1,3167.8,0.2312]
[1763307186468,4.92181352,3167.9,3167.8,0.2312]
[1763307186671,4.92181352,3167.9,3167.5,0.1364]
[1763307186870,0.71574371,3167.8,3167.7,0.2312]
[1763307187077,3.2078,3167.9,3167.8,0.2312]
[1763307187283,0.00289306,3167.9,3167.8,0.2312]
[1763307187786,1.00116287,3167.9,3167.8,0.2312]
[1763307188987,0.00472992,3168.0,3167.9,0.2312]
[1763307189378,4.20606981,3168.8,3168.7,0.2312]
[1763307189579,5.91852329,3168.8,3168.7,0.2312]
[1763307190081,5.92103257,3168.8,3168.7,0.2312]
[1763307190282,5.2068489,3168.8,3168.7,0.2312]
[1763307191575,4.20857909,3168.8,3168.7,0.2312]
[1763307191886,0.00250928,3168.8,3168.7,3.439]
[1763307200591,0.00250928,3168.8,3168.7,6.131]
[1763307201393,0.00250928,3168.8,3168.7,18.2172]
[1763307201595,0.00250928,3168.8,3168.7,2.9232]
[1763307201891,0.00250928,3168.8,3168.7,21.425]
[1763307202593,0.00472992,3169.1,3169.0,0.2339]
[1763307202893,4.20606981,3169.6,3169.5,0.3788]
[1763307203684,4.20923933,3169.6,3169.5,0.38120772]
[1763307204292,0.00316952,3169.6,3169.5,0.38120772]
[1763307204886,0.00316952,3169.6,3169.5,3.58900772]
[1763307207490,0.00472992,3169.9,3169.8,0.2339]
[1763307208491,4.20606981,3170.5,3170.4,0.2339]
[1763307208690,4.20954558,3170.5,3170.4,0.2339]
[1763307209500,3.21127577,3170.5,3170.4,0.2339]
[1763307209699,0.99826981,3170.7,3170.6,0.2339]
[1763307210199,0.99826981,3170.7,3170.5,0.1413]
[1763307210590,0.99826981,3170.7,3170.6,0.2495]
[1763307210786,1.00214286,3170.7,3170.6,0.2495]
[1763307211601,8.00041267,3170.7,3170.5,0.1413]
[1763307211792,8.00041267,3170.7,3169.9,3.2078]
[1763307211793,6.0,3170.6,3169.9,3.2078]
[1763307211999,0.99826981,3170.0,3169.5,3.35510772]
[1763307212193,3.2078,3170.3,3169.5,3.35510772]
[1763307212194,1.99653962,3169.6,3169.5,3.35510772]
[1763307212598,1.99653962,3169.6,3169.5,0.14730772]
[1763307212997,7.99653962,3169.6,3169.2,0.00472992]
[1763307213198,0.99826981,3169.3,3169.2,0.00472992]
[1763307214099,0.99826981,3169.3,3169.2,0.00871287]
[1763307214802,1.45787695,3169.3,3169.2,0.00871287]
[1763307218010,1.45787695,3169.3,3169.2,0.25821287]
[1763307220423,1.45787695,3169.3,3169.2,0.00871287]
[1763307221811,4.66567695,3169.3,3168.6,3.2078]
[1763307222006,1.45787695,3168.7,3168.6,3.2078]
[1763307222207,1.45787695,3168.7,3168.5,0.1413]
[1763307223013,1.45787695,3168.7,3168.5,0.14467209]
[1763307223703,1.45787695,3168.7,3168.6,0.2495]
[1763307224417,3.21252992,3168.9,3168.8,0.2495]
[1763307224615,3.92573867,3168.9,3168.8,0.2495]
[1763307225713,3.21252992,3168.9,3168.8,0.2495]
[1763307226807,0.00472992,3168.9,3168.8,0.2495]
[1763307236925,1.00169949,3168.9,3168.8,0.2495]
[1763307238820,0.939372,3168.9,3168.8,0.2495]
[1763307239927,0.939372,3168.9,3168.5,6.04447209]
[1763307240122,0.93464208,3168.6,3168.5,6.04447209]
[1763307240325,0.93464208,3168.6,3168.5,6.28127209]
[1763307240619,0.00472992,3168.9,3168.5,6.28127209]
[1763307240620,4.14244208,3169.3,3169.2,0.2368]
[1763307240929,4.14244208,3169.3,3169.0,0.1495]
[1763307241431,0.71555898,3169.2,3169.1,0.2368]
[1763307244920,0.71555898,3169.2,3169.0,0.1495]
[1763307244921,3.2078,3169.3,3169.2,0.2368]
[1763307246033,0.00472992,3169.5,3169.4,0.2368]
[1763307246528,0.00472992,3169.5,3169.4,3.4446]
[1763307249830,0.00472992,3169.5,3169.4,4.57714492]
[1763307250436,0.00472992,3169.5,3169.4,3.4446]
[1763307252637,0.00472992,3169.5,3169.4,4.57714492]
[1763307255533,3.2078,3170.5,3170.4,0.2497]
[1763307255735,4.14244208,3170.5,3170.4,0.2497]
[1763307256038,4.14244208,3170.5,3170.0,0.1484]
[1763307256539,0.93464208,3170.1,3170.0,0.1484]
[1763307256732,4.14244208,3170.1,3170.0,0.1484]
[1763307256925,9.2078,3170.1,3170.0,0.1484]
[1763307257240,10.14244208,3170.1,3169.9,0.00472992]
[1763307257433,10.14244208,3170.1,3169.0,4.48866133]
[1763307257628,4.14244208,3169.6,3169.0,3.3573]
[1763307258435,4.14244208,3169.6,3169.2,0.00472992]
[1763307258635,0.93464208,3169.3,3169.2,0.00472992]
[1763307262133,0.93464208,3169.3,3169.2,0.25442992]
[1763307263033,0.93464208,3169.5,3169.4,0.2497]
[1763307266647,0.93464208,3169.8,3169.7,0.2497]
[1763307269146,3.2078,3170.0,3169.9,0.2497]
[1763307270239,3.2078,3170.0,3169.6,1.13136133]
[1763307270446,3.2078,3170.0,3169.9,0.2464]
[1763307270645,3.2078,3170.5,3170.4,0.2464]
[1763307271838,4.14244208,3170.5,3170.4,0.2464]
[1763307272447,0.93464208,3170.5,3170.4,0.2464]
[1763307275134,0.00472992,3170.6,3170.0,1.26726133]
[1763307275135,0.00472992,3170.6,3170.5,0.3823]
[1763307275343,0.00387305,3170.7,3170.6,0.2464]
[1763307275640,3.2078,3171.3,3171.2,0.2464]
[1763307276243,0.00472992,3171.6,3171.5,0.1359]
[1763307276442,0.00472992,3171.6,3171.5,0.3823]
[1763307276648,0.00756969,3171.6,3171.5,0.38461459]
[1763307280140,3.2078,3172.1,3172.0,0.3823]
[1763307281238,3.21048036,3172.1,3172.0,0.3823]
[1763307282048,3.21048036,3172.1,3172.0,0.1359]
[1763307283149,9.21048036,3172.1,3172.0,0.1359]
[1763307283353,9.21048036,3172.1,3171.5,0.13821459]
[1763307283651,3.21048036,3172.1,3171.5,0.13821459]
[1763307283853,3.21048036,3172.1,3172.0,0.1359]
[1763307286052,3.21048036,3172.1,3171.5,0.00231459]
[1763307286053,9.21048036,3172.1,3171.5,0.00231459]
[1763307286254,4.83906117,3171.6,3171.5,0.00231459]
[1763307286857,10.83906117,3171.6,3171.0,0.1359]
[1763307287055,3.2078,3171.1,3171.0,0.1359]
[1763307287256,3.2078,3171.1,3170.9,0.00472992]
[1763307287959,3.2078,3171.1,3171.0,0.1359]
[1763307288954,3.2078,3171.1,3171.0,0.3823]
[1763307291053,3.2078,3171.1,3171.0,0.1359]
[1763307293752,3.2078,3171.1,3171.0,0.3823]
[1763307296055,3.2078,3171.1,3171.0,0.1359]
[1763307297263,3.2078,3171.1,3171.0,0.3823]
[1763307297467,0.84816576,3171.7,3171.6,0.2464]
[1763307297765,3.2078,3171.9,3171.5,0.1359]
[1763307298761,4.66326282,3171.9,3171.5,0.1359]
[1763307301269,5.51142858,3171.9,3171.0,0.1359]
[1763307301566,1.45546282,3171.2,3170.9,0.00747338]
[1763307301868,3.2078,3171.1,3171.0,0.1443]
[1763307302262,3.2078,3171.1,3170.9,0.00747338]
[1763307303971,3.2078,3171.1,3171.0,0.1443]
[1763307304164,0.84816576,3171.4,3171.0,0.3818]
[1763307304165,1.45546282,3171.4,3171.0,0.3818]
[1763307304866,3.2078,3171.5,3171.4,0.2375]
[1763307305873,3.2078,3171.9,3171.5,0.1443]
[1763307307475,1.45546282,3171.8,3171.5,0.1443]
[1763307309863,0.84816576,3171.7,3171.0,3.3521]
[1763307310075,1.45546282,3171.1,3171.0,3.3521]
[1763307311077,1.45546282,3171.1,3171.0,3.5896]
[1763307311684,5.51142858,3171.5,3171.3,0.2375]
[1763307312177,2.30362858,3171.5,3171.3,0.2375]
[1763307313486,2.30362858,3171.5,3171.0,3.3521]
[1763307313989,0.84816576,3171.4,3171.0,3.3521]
[1763307314683,0.84816576,3171.4,3171.0,0.1443]
[1763307315084,0.84816576,3171.4,3171.3,0.2375]
[1763307318389,0.84816576,3171.4,3171.0,0.1443]
[1763307318390,1.45546282,3171.5,3171.4,0.2319]
[1763307318785,3.2078,3171.7,3171.6,0.2319]
[1763307320990,0.84927116,3172.0,3171.5,0.1454]
[1763307320991,4.05975152,3172.1,3172.0,0.1454]
[1763307322288,4.05975152,3172.1,3172.0,0.3773]
[1763307322888,3.21048036,3172.1,3172.0,0.3773]
[1763307323687,0.00268036,3172.1,3172.0,0.3773]
[1763307324091,0.00312698,3172.4,3172.3,0.2319]
[1763307324787,0.84927116,3172.9,3172.3,0.2319]
[1763307324788,0.84927116,3172.9,3172.8,0.2319]
[1763307324983,0.84927116,3173.3,3173.0,0.1454]
[1763307325384,0.00377855,3173.3,3173.0,0.1454]
[1763307328491,1.45924137,3173.3,3172.8,0.00472992]
[1763307328690,1.45546282,3172.9,3172.5,0.1454]
[1763307329897,1.45546282,3172.7,3172.5,0.1454]
[1763307330899,3.2078,3172.6,3172.4,0.00472992]
[1763307331693,9.2078,3172.6,3171.8,3.2078]
[1763307331895,1.45546282,3172.1,3171.8,3.2078]
[1763307332195,1.45546282,3172.1,3172.0,0.1446]
[1763307334397,1.45546282,3172.1,3172.0,0.3772]
[1763307335595,1.45546282,3172.1,3172.0,0.1446]
[1763307335794,1.45546282,3172.1,3172.0,0.3772]
[1763307337095,1.45546282,3172.1,3172.0,0.1446]
[1763307337492,1.45546282,3172.1,3171.7,0.00472992]
[1763307340695,1.45546282,3172.1,3171.0,1.27676133]
[1763307340696,3.2078,3171.8,3171.0,0.1454]
[1763307341001,1.45546282,3171.4,3171.0,0.1454]
[1763307343205,1.45546282,3171.4,3171.3,0.2326]
[1763307345303,1.45546282,3171.4,3171.0,0.1454]
[1763307351718,4.05707116,3171.8,3171.5,0.1446]
[1763307352005,3.2078,3171.8,3171.7,0.2326]
[1763307353211,3.2078,3171.8,3171.5,0.1446]
[1763307354710,3.2078,3171.8,3171.7,0.2326]
[1763307354903,1.45546282,3171.9,3171.7,0.2326]
[1763307355901,1.45546282,3171.9,3171.5,0.1446]
[1763307356308,3.2078,3171.8,3171.5,0.1446]
[1763307356611,1.45546282,3171.9,3171.5,0.1446]
[1763307357315,3.2078,3171.8,3171.0,0.1454]
[1763307357615,1.45546282,3171.1,3171.0,0.1454]
[1763307358409,1.45546282,3171.1,3171.0,0.378]
[1763307359110,0.00472992,3171.4,3171.0,0.378]
[1763307359312,0.00472992,3171.4,3171.3,0.2326]
[1763307359515,0.00472992,3171.4,3171.0,0.1454]
[1763307359810,0.00472992,3171.4,3171.3,0.237]
[1763307360807,0.93797809,3171.4,3171.3,0.237]
[1763307361008,0.93797809,3171.4,3171.0,0.1454]
[1763307361308,0.93324817,3171.1,3171.0,0.3824]
[1763307362115,0.93324817,3171.1,3171.0,0.1454]
[1763307363012,1.63238555,3171.1,3171.0,0.1454]
[1763307363219,1.63238555,3171.1,3171.0,0.1435]
[1763307364317,1.63238555,3171.1,3171.0,0.3805]
[1763307366316,1.63238555,3171.1,3171.0,6.3805]
[1763307366516,0.00472992,3171.4,3171.3,0.237]
[1763307367920,0.00472992,3171.4,3171.0,0.1435]
[1763307370122,1.63238555,3171.2,3171.0,0.1435]
[1763307372626,0.85400108,3171.4,3171.0,0.1435]
[1763307373218,0.85400108,3171.4,3171.3,0.237]
[1763307373824,0.00472992,3171.4,3171.3,0.237]
[1763307376127,0.00472992,3171.4,3171.3,5.14804876]
[1763307376427,0.84927116,3172.1,3172.0,0.3883]
[1763307376631,0.84927116,3172.2,3172.1,0.2417]
[1763307377424,0.84927116,3172.2,3172.0,0.1466]
[1763307380427,0.84927116,3172.2,3172.1,0.2417]
[1763307382431,0.84927116,3172.4,3172.2,0.2417]
[1763307382628,0.84927116,3172.4,3172.3,0.2417]
[1763307383927,0.00472992,3172.5,3172.4,0.2417]
[1763307385430,0.00472992,3172.5,3172.0,0.1466]
[1763307387138,1.63711547,3172.5,3172.0,0.1466]
[1763307388542,1.63711547,3172.5,3172.4,0.2417]
[1763307388739,0.00472992,3172.5,3172.4,0.2417]
[1763307404753,0.93733527,3172.5,3172.4,0.2417]
[1763307412866,1.86994062,3172.5,3172.1,1.13310973]
[1763307413166,0.93260535,3172.2,3172.1,0.24]
[1763307416868,0.93260535,3172.2,3172.0,0.1466]
[1763307420175,1.77982007,3172.2,3172.0,0.1466]
[1763307420373,0.93260535,3172.1,3172.0,0.1466]
[1763307420873,1.99072496,3172.1,3172.0,0.1466]
[1763307421266,1.99072496,3172.1,3171.7,3.2078]
[1763307421462,0.99536248,3171.8,3171.5,0.1466]
[1763307421666,0.99536248,3171.6,3171.5,0.1466]
[1763307422165,5.19852496,3171.6,3171.5,0.1466]
[1763307422567,4.20316248,3171.6,3171.5,0.1466]
[1763307425272,0.99536248,3171.7,3171.5,0.391]
[1763307425468,3.2078,3172.0,3171.9,0.2444]
[1763307425670,4.20316248,3172.0,3171.9,0.2444]
[1763307425973,0.99536248,3172.1,3172.0,0.3848]
[1763307426167,4.05803691,3172.4,3172.3,0.2444]
[1763307426369,0.99536248,3172.4,3172.3,0.2444]
[1763307426876,5.19852496,3172.4,3172.0,0.1404]
[1763307427070,1.99072496,3172.1,3172.0,0.1404]
[1763307427775,0.99536248,3172.1,3172.0,0.3848]
[1763307430169,0.99536248,3172.1,3172.0,0.1404]
[1763307430374,0.99536248,3172.1,3172.0,0.3848]
[1763307437879,1.99072496,3172.1,3172.0,0.1404]
[1763307439481,0.99536248,3172.1,3172.0,0.1404]
[1763307439682,0.99536248,3172.1,3172.0,0.3705]
[1763307442881,1.99072496,3172.1,3171.5,3.3544]
[1763307443084,0.99536248,3171.6,3171.5,3.3544]
[1763307444190,0.99536248,3171.6,3171.5,3.5845]
[1763307447491,0.99536248,3171.9,3171.8,0.2301]
[1763307450090,0.99536248,3171.9,3171.6,3.2078]
[1763307451387,0.99536248,3171.9,3171.5,0.1466]
[1763307451586,4.20316248,3171.6,3171.0,1.27380155]
[1763307451779,0.99536248,3171.1,3171.0,0.3801]
[1763307452689,0.99536248,3171.1,3171.0,0.1435]
[1763307453294,0.99536248,3171.1,3170.9,0.00747338]
[1763307453785,1.84501038,3171.1,3170.9,0.00747338]
[1763307454389,1.84501038,3171.1,3170.5,0.1446]
[1763307454590,0.99536248,3170.6,3170.5,0.1446]
[1763307454791,0.99536248,3170.6,3170.5,0.3812]
[1763307455086,0.99536248,3170.6,3170.5,0.1446]
[1763307455288,0.99798311,3170.6,3170.5,0.14866707]
[1763307455791,0.99798311,3170.6,3170.5,0.38526707]
[1763307462696,0.00262063,3170.6,3170.5,0.38526707]
[1763307465901,3.2078,3171.2,3170.9,0.2366]
[1763307466100,3.2078,3171.2,3171.1,0.2366]
[1763307467001,3.21033761,3171.2,3171.1,0.2366]
[1763307471999,3.21033761,3171.2,3171.0,0.1445]
[1763307472195,0.99536248,3171.1,3171.0,0.1445]
[1763307473000,0.99536248,3171.1,3171.0,0.3811]
[1763307473503,0.99536248,3171.1,3171.0,0.1445]
[1763307474811,4.20570009,3171.2,3171.0,0.3811]
[1763307475210,4.20570009,3171.2,3171.0,0.1445]
[1763307475527,5.20106257,3171.2,3171.0,0.1445]
[1763307478911,0.99536248,3171.1,3171.0,0.1445]
[1763307479711,0.99536248,3171.1,3171.0,0.3788]
[1763307480419,4.20570009,3171.2,3171.1,0.2343]
[1763307482710,0.00253761,3171.2,3171.1,0.2343]
[1763307482909,3.2078,3171.6,3171.5,0.3773]
[1763307483117,3.2078,3171.6,3171.5,15.6563]
[1763307483319,3.2078,3172.0,3171.5,15.422]
[1763307483522,3.2078,3172.0,3171.9,0.2343]
[1763307484016,3.21029653,3172.0,3171.9,0.2343]
[1763307487514,0.00249653,3172.0,3171.9,0.2343]
[1763307488123,0.93535661,3172.0,3171.5,1.27616293]
[1763307488319,4.14066008,3171.7,3171.5,1.27616293]
[1763307488821,4.14066008,3171.7,3171.5,0.143]
[1763307490020,4.14066008,3171.7,3171.6,0.2343]
[1763307490415,0.93535661,3172.0,3171.9,0.2343]
[1763307490814,0.93535661,3172.0,3171.5,0.143]
[1763307492922,0.93535661,3172.0,3171.9,0.2343]
[1763307496531,0.93535661,3172.0,3171.5,1.27483039]
[1763307496725,0.93286008,3171.6,3171.5,0.143]
[1763307500112,0.93286008,3171.6,3171.0,0.1445]
[1763307500318,0.93286008,3171.1,3171.0,0.1445]
[1763307514741,3.2078,3171.3,3171.2,0.2342]
[1763307515128,3.2078,3171.3,3171.0,0.1445]
[1763307519640,0.93286008,3171.1,3171.0,0.1445]
[1763307524144,0.93286008,3171.1,3171.0,0.3787]
[1763307525341,0.93286008,3171.1,3171.0,1.51053039]
[1763307527351,0.93286008,3171.1,3171.0,0.3787]
[1763307532957,1.7803311,3171.4,3171.0,0.3787]
[1763307533151,1.7803311,3171.4,3171.1,1.13573238]
[1763307533452,1.7803311,3171.4,3171.3,0.2342]
[1763307533756,0.84747102,3171.5,3171.4,0.2342]
[1763307535552,0.84747102,3171.5,3171.2,1.13573238]
[1763307536460,0.84747102,3171.5,3171.4,0.2342]
[1763307541462,1.7803311,3171.6,3171.4,0.2342]
[1763307541665,0.84747102,3171.5,3171.4,0.2342]
[1763307542560,0.84747102,3171.5,3171.1,16.40873238]
[1763307542761,4.14066008,3171.3,3171.1,15.273]
[1763307544762,3.2078,3171.3,3171.2,0.237]
[1763307544963,0.85079053,3171.4,3171.3,0.237]
[1763307545561,0.85079053,3171.4,3171.0,3.97223238]
[1763307545761,3.2078,3171.3,3171.1,1.13573238]
[1763307546066,0.99533421,3171.2,3171.1,1.13573238]
[1763307547259,1.99066842,3171.2,3171.0,1.28023238]
[1763307551566,1.99066842,3171.2,3171.0,0.1445]
[1763307556176,0.99533421,3171.2,3171.0,0.1445]
[1763307556370,1.99066842,3171.2,3171.0,0.1445]
[1763307558473,0.99533421,3171.1,3171.0,0.1445]
[1763307558676,0.99533421,3171.1,3171.0,1.51573238]
[1763307559382,4.20313421,3171.3,3171.2,0.2355]
[1763307565686,4.20313421,3171.3,3171.0,1.28023238]
[1763307565887,0.99533421,3171.1,3171.0,1.28023238]
[1763307566084,0.99533421,3171.1,3171.0,1.51573238]
[1763307571390,0.99533421,3171.1,3171.0,0.38]
[1763307573287,4.05792906,3171.4,3171.3,0.2418]
[1763307573491,0.85012906,3171.6,3171.5,0.3794]
[1763307574586,1.84546327,3171.6,3171.5,0.3794]
[1763307576280,1.84546327,3171.6,3171.5,0.1376]
[1763307576590,0.99533421,3171.6,3171.5,0.1376]
[1763307576793,1.84602787,3171.6,3171.5,0.1376]
[1763307579594,5.05382787,3171.6,3171.5,0.1376]
[1763307584788,5.05382787,3171.6,3171.5,0.3794]
[1763307588597,5.05382787,3171.6,3171.5,0.1376]
[1763307589199,1.84602787,3171.6,3171.5,0.1376]
[1763307589392,5.05382787,3171.6,3171.5,0.1376]
[1763307590390,3.2078,3171.6,3171.5,0.3794]
[1763307590892,4.20313421,3171.6,3171.5,0.3794]
[1763307591994,0.99533421,3171.6,3171.5,0.3794]
[1763307600802,0.99533421,3171.6,3171.5,1.5149833]
[1763307606819,3.2078,3171.7,3171.6,0.2284]
[1763307610014,3.2078,3171.7,3171.5,1.2731833]
[1763307610315,0.93288006,3171.6,3171.5,0.1376]
[1763307610719,0.93288006,3171.6,3171.5,0.366]
[1763307611621,0.93288006,3171.6,3171.5,1.50024642]
[1763307616721,3.2078,3171.9,3171.8,0.237]
[1763307616921,0.00249653,3172.0,3171.5,0.1376]
[1763307616922,0.00249653,3172.0,3171.9,0.237]
[1763307617124,0.00249653,3172.0,3171.9,1.3712956]
[1763307617909,0.00249653,3172.0,3171.9,0.237]
[1763307618220,3.21252992,3172.3,3172.2,0.2335]
[1763307618814,3.21252992,3172.3,3172.2,1.36692186]
[1763307619325,3.21474185,3172.3,3172.1,1.13342186]
[1763307620728,3.21474185,3172.3,3172.2,0.2335]
[1763307621412,0.00694185,3172.3,3172.2,0.2335]
[1763307621610,0.00694185,3172.3,3172.2,1.36692186]
[1763307624216,0.00694185,3172.3,3172.2,0.2335]
[1763307626325,0.93288006,3173.0,3172.9,0.2335]
[1763307626715,3.2078,3173.1,3173.0,0.3787]
[1763307627423,0.93288006,3173.3,3173.2,0.2335]
[1763307627619,0.00241531,3173.3,3173.2,0.23609347]
[1763307630427,0.93529537,3173.3,3173.2,0.00259347]
[1763307630621,0.0346,3173.7,3173.6,0.2487]
[1763307630816,3.2078,3174.4,3174.3,0.2487]
[1763307631023,4.14068006,3174.4,3174.0,15.40512992]
[1763307631625,4.14322879,3174.4,3174.0,15.40512992]
[1763307632622,0.93288006,3174.1,3174.0,15.40512992]
[1763307633126,7.86576012,3174.1,3173.2,0.00259347]
[1763307633434,4.14068006,3173.3,3173.0,0.1452]
[1763307633926,3.2078,3173.3,3173.0,0.1452]
[1763307634128,0.93288006,3173.1,3173.0,0.1452]
[1763307634324,0.93288006,3173.1,3173.0,0.14781782]
[1763307634827,0.93288006,3173.1,3173.0,0.39651782]
[1763307635422,0.93288006,3173.1,3173.0,0.14781782]
[1763307635932,0.93288006,3173.1,3173.0,0.39651782]
[1763307637026,0.93288006,3173.1,3173.0,0.14781782]
[1763307638234,0.93288006,3173.1,3173.0,0.39651782]
[1763307638625,0.93288006,3173.1,3173.0,0.14781782]
[1763307641033,3.2078,3173.7,3173.5,0.1484]
[1763307641633,3.2078,3173.7,3173.0,0.14781782]
[1763307641834,0.93288006,3173.2,3173.0,0.14781782]
[1763307642934,3.2078,3173.3,3173.2,0.2487]
[1763307643533,0.93288006,3173.5,3173.2,0.2487]
[1763307643734,0.93288006,3173.5,3173.4,0.2487]
[1763307644031,3.2078,3173.7,3173.5,0.1484]
[1763307644230,0.93288006,3173.6,3173.5,0.1484]
[1763307644838,0.93288006,3173.6,3173.0,0.14781782]